Cogmind - Beta 12 *** ADVENTURER MODE // 2023.09.11 @ 21:09:43 Player: Trantor Result: Destroyed by G-47 Trooper with Particle Gun Performance ------------- Evolutions (2) 1000 Regions Visited (10) 2000 Robots Destroyed (142) 710 Value Destroyed (5104) 5104 Prototype IDs (36) 720 Alien Tech Used (0) 0 Bonus (2634) 2634 TOTAL SCORE: 12168 Bonus ------- High Alert Combat Kills 307 Follower Combat Kills 307 Entered Garrisons 400 Used RIF Installer 1500 Aligned with FarCom 300 Friendly Fire -180 Cogmind --------- Core Integrity 0/550 Matter 201/300 Energy 240/240 System Corruption 15% Temperature Warm (167) Movement Hovering (102) Ox1 Location -8/Garrison Parts ------- > --- POWER (1) -------- Nuclear Core > --- PROPULSION (4) --- Aerolev Unit Aerolev Unit Aerolev Unit > --- UTILITY (4) ------ Medium Storage Unit Transmission Jammer Layered Light Armor Plating > --- WEAPON (2) ------- Mini Assault Cannon Makeshift Axe > --- INVENTORY (10) --- Nuclear Core Aerolev Unit Superbattery (1500) High-capacity Matter Pod (200) Advanced Weight Redist. System Hardened Light Armor Plating Mini Assault Cannon Shock Bomb Launcher Heavy Rocket Launcher Heavy Rocket Launcher Peak State ------------ > --- POWER ------------ Nuclear Core > --- PROPULSION ------- Aerolev Unit Aerolev Unit Aerolev Unit Aerolev Unit > --- UTILITY ---------- Improved Heat Sink Large Storage Unit Transmission Jammer Layered Light Armor Plating > --- WEAPON ----------- Mini Assault Cannon Makeshift Axe > --- INVENTORY -------- Improved Heat Sink Small Storage Unit Medium Storage Unit Superbattery High-capacity Matter Pod Advanced Weight Redist. System Propulsion Shielding Hardened Light Armor Plating Layered Light Armor Plating Advanced Beam Cannon Advanced Beam Cannon Mini Assault Cannon Mini Assault Cannon Heavy Rocket Launcher Heavy Rocket Launcher [Rating: 45] Favorites ----------- Power Ion Engine Engine Ion Engine Power Core Light Nuclear Core Propulsion Armored Wheel Treads Light Treads Leg Improved Aluminum Leg Wheel Armored Wheel Hover Unit Aerolev Unit Flight Unit Improved Flight Unit Utility Large Storage Unit Device Improved Heat Sink Storage Large Storage Unit Processor Advanced Targeting Computer Hackware Hacking Suite Protection Hardened Light Armor Plating Weapon Light Cannon Energy Gun Heavy EM Shotgun Energy Cannon Advanced Beam Cannon Ballistic Gun Improved Assault Rifle Ballistic Cannon Light Cannon Launcher Missile Launcher Slashing Weapon Makeshift Axe Build | -11 -10 -10 -9 -9 -9 -8 -8 -8 -8 -8 ------- Run | Jun Mat Min Mat Min Exi Min Mat Gar Mat Gar Slots Evolved 4 | . . . 2 . . . 2 . . . Power . | . . . . . . . . . . . Propulsion 2 | . . . 1 . . . 1 . . . Utility 2 | . . . 1 . . . 1 . . . Weapon . | . . . . . . . . . . . Parts Attached 141 | . 17 2 48 7 1 . 12 23 31 . Power 19 | . 2 1 7 1 . . 1 3 4 . Engine 15 | . 2 1 7 1 . . 1 2 1 . Core 4 | . . . . . . . . 1 3 . Reactor . | . . . . . . . . . . . Propulsion 38 | . 6 . 11 . . . 3 8 10 . Treads 1 | . . . . . . . . 1 . . Leg 11 | . 3 . 4 . . . . 1 3 . Wheel 19 | . 3 . 5 . . . 2 6 3 . Hover 5 | . . . . . . . 1 . 4 . Flight 2 | . . . 2 . . . . . . . Utility 32 | . 5 . 9 . 1 . 4 5 8 . Device 8 | . . . . . 1 . . 2 5 . Storage 4 | . 2 . 1 . . . . . 1 . Processor 1 | . . . . . . . 1 . . . Hackware 3 | . . . 1 . . . 2 . . . Protection 16 | . 3 . 7 . . . 1 3 2 . Artifact . | . . . . . . . . . . . Weapon 52 | . 4 1 21 6 . . 4 7 9 . Energy Gun 3 | . . . 1 . . . . . 2 . Energy Cannon 8 | . . . 5 2 . . . 1 . . Ballistic Gun 10 | . . . 5 1 . . 2 1 1 . Ballistic Cannon 19 | . 4 1 7 . . . 1 1 5 . Launcher 8 | . . . 2 3 . . 1 2 . . Special Weapon . | . . . . . . . . . . . Impact Weapon . | . . . . . . . . . . . Slashing Weapon 4 | . . . 1 . . . . 2 1 . Piercing Weapon . | . . . . . . . . . . . Special Melee Weapon . | . . . . . . . . . . . Unidentified Prototypes 10 | . . . 6 . . . 1 . 3 . Parts Lost 18 | . . . 1 1 . . 4 5 5 2 Power 2 | . . . . . . . . 1 1 . Propulsion 6 | . . . 1 . . . . 1 3 1 Utility 8 | . . . . 1 . . 3 2 1 1 Weapon 2 | . . . . . . . 1 1 . . Highest Loss Streak 5 | . . . 1 1 . . 2 1 5 2 To Critical Strikes . | . . . . . . . . . . . Average Slot Usage (%) 96 | . 98 100 97 94 97 100 90 96 95 100 Engine 9 | . 14 14 11 11 11 11 9 7 . . Core 1 | . . . . . . . . 1 7 9 Leg 8 | . 11 28 11 . . . . . 5 . Wheel 21 | . 16 . 19 33 33 33 26 32 25 . Hover 1 | . . . . . . . 7 1 2 36 Device 4 | . . . . . 8 11 4 7 16 9 Storage 10 | . 14 14 11 11 11 11 9 9 9 9 Hackware 4 | . . . 10 6 . . 7 6 . . Protection 11 | . 12 14 10 11 11 11 4 11 9 18 Energy Cannon 1 | . . . 6 5 . . . . . . Ballistic Gun 6 | . 6 . 9 10 11 11 14 4 . . Ballistic Cannon 9 | . 21 28 5 . . . . 4 9 9 Launcher 1 | . . . . 5 11 11 2 . . . Slashing Weapon 2 | . . . . . . . . 8 8 9 Naked Turns . | . . . . . . . . . . . Heaviest Build 46 | 10 34 36 42 45 46 46 46 45 46 30 Greatest Support 48 | 20 26 26 39 36 36 36 36 48 48 32 Greatest Overweight (x) 4 | . 3 1 3 1 1 1 1 1 4 . Average Overweight (x) . | . . 1 1 . 1 1 . . . . Largest Inventory Capacity 15 | 8 15 15 15 15 15 15 15 15 15 10 Average Capacity 14 | 8 14 15 15 15 15 15 15 15 14 10 Most Carried 15 | 6 15 15 15 15 15 15 15 15 15 10 Average Carried 14 | 6 13 14 14 15 14 15 14 14 14 10 Final Capacity 15 | 8 15 15 15 15 15 15 15 15 10 10 Final Carried 15 | 6 15 15 15 15 15 15 15 15 10 10 Class Distribution -------------------- 42% | Mutant 38% | Hacker-Mutant 18% | Scavenger-Mutant Dominant Class ---------------- Mutant | -10/Materials Mutant | -10/Mines Hacker-Mutant | -9/Materials Mutant | -9/Mines Mutant | -9/Exiles Mutant | -8/Mines Hacker-Mutant | -8/Materials Scavenger-Mutant | -8/Garrison Scavenger-Mutant | -8/Materials Mutant | -8/Garrison Resources | -11 -10 -10 -9 -9 -9 -8 -8 -8 -8 -8 ----------- Run | Jun Mat Min Mat Min Exi Min Mat Gar Mat Gar Matter Collected 3498 | 200 402 50 1074 216 15 . 317 560 620 44 Remotely . | . . . . . . . . . . . Salvage Created 5327 | . 416 52 1673 166 . . 645 1492 827 56 Parts 294 | . 21 6 96 13 . . 36 68 49 5 Haulers Intercepted 11 | . 2 . 6 . . . 1 . 2 . Recyclers Shooed 2 | . . . 1 . . . . . 1 . Parts Field Recycled . | . . . . . . . . . . . Retrieved Matter . | . . . . . . . . . . . Parts Self-Destructed . | . . . . . . . . . . . Prevented . | . . . . . . . . . . . Kills | -11 -10 -10 -9 -9 -9 -8 -8 -8 -8 -8 ------- Run | Jun Mat Min Mat Min Exi Min Mat Gar Mat Gar Combat Hostiles Destroyed 127 | . 9 3 35 22 . . 11 30 15 2 Melee 23 | . . . . . . . . 16 6 1 Guns 25 | . 7 . 11 . . . 6 1 . . Cannons 44 | . 2 3 22 2 . . 1 4 9 1 AOE 34 | . . . 2 19 . . 4 9 . . Classes Destroyed 13 | . 4 . 3 2 . . 2 1 1 . Worker 1 | . . . . . . . . . 1 . Builder 4 | . . . . 1 . . . . 3 . Hauler 11 | . 2 . 6 . . . 1 . 2 . Recycler 2 | . . . . . . . 1 . 1 . Operator 3 | . . . 2 . . . . . 1 . Watcher 9 | . 1 . 2 . . . 2 . 4 . Swarmer 28 | . 3 2 3 4 . . . 12 4 . Grunt 51 | . 6 1 22 2 . . 3 9 6 2 Brawler 1 | . . . 1 . . . . . . . Duelist 3 | . . . . . . . . 1 2 . Sentry 25 | . . . 9 . . . 6 7 3 . Hunter 2 | . . . . . . . 2 . . . Assembled 16 | . . . . 16 . . . . . . Thug 1 | . . . . 1 . . . . . . Butcher 1 | . . . . . . . . 1 . . Best Kill Streak 17 | . 3 2 5 17 . . 7 7 6 1 Combat Bots Only 16 | . 3 2 5 16 . . 5 7 3 1 Max Kills in Single Turn 5 | . 1 1 2 5 . . 3 3 1 1 Gunslinging . | . . . . . . . . . . . Exploded 4 | . . . 2 4 . . 1 3 . . Melee 1 | . . . . . . . . 1 1 1 Uniques/NPCs Destroyed . | . . . . . . . . . . . Combat | -11 -10 -10 -9 -9 -9 -8 -8 -8 -8 -8 -------- Run | Jun Mat Min Mat Min Exi Min Mat Gar Mat Gar Damage Taken 4535 | . 340 32 981 161 . . 581 1045 1066 329 Core 732 | . 62 . 77 40 . . 78 81 305 89 Absorbed by Shields 87 | . . . . . . . 87 . . . Redirected to Shielding 52 | . . . . . . . . . . 52 Regen/Repaired (Parts) 386 | . 37 . 252 . . . 97 . . . Core Remaining (%) 81 | 100 . 75 . . . 70 . . . . Volleys Fired 300 | . 36 4 113 13 . . 44 26 57 7 Largest 2 | . 2 2 2 2 . . 2 2 2 1 Hottest 96 | . 70 79 91 91 . . 67 91 96 48 Shots Fired 485 | . 72 8 206 16 . . 82 33 61 7 Gun 236 | . 52 . 94 3 . . 72 15 . . Cannon 225 | . 20 8 109 3 . . 4 13 61 7 Launcher 24 | . . . 3 10 . . 6 5 . . Special . | . . . . . . . . . . . Kinetic 389 | . 72 8 138 3 . . 76 24 61 7 Thermal 72 | . . . 65 3 . . . 4 . . Explosive 24 | . . . 3 10 . . 6 5 . . Electromagnetic . | . . . . . . . . . . . Robot Hit Streak 25 | . 11 4 25 11 . . 17 13 19 11 Robot Miss Streak 3 | . 3 1 2 . . . 1 1 2 1 Penetration Max . | . . . . . . . . . . . Secondary Targets 1 | . 1 . . . . . . . . . Max Gunslinging Chain 1 | . 1 . . . . . . . . . Shots Hit Robots 423 | . 50 5 148 8 . . 67 79 59 7 Core Hits 226 | . 22 4 59 34 . . 28 50 25 4 Critical Kills 1 | . . . . 1 . . . . . . Critical Parts Destroyed 2 | . . . 1 . . . 1 . . . Critical Strikes 14 | . . . 2 1 . . 1 6 3 1 Meltdown 1 | . . . . 1 . . . . . . Destroy 2 | . . . 1 . . . 1 . . . Blast 5 | . . . 1 . . . . . 3 1 Sever 6 | . . . . . . . . 6 . . Melee Attacks 147 | . . . . . . . . 99 38 10 Impact . | . . . . . . . . . . . Slashing 147 | . . . . . . . . 99 38 10 Piercing . | . . . . . . . . . . . Sneak Attacks 13 | . . . . . . . . 6 6 1 Combat Hostiles 2 | . . . . . . . . 1 . 1 Follow-up Attacks . | . . . . . . . . . . . Damage Inflicted 13267 | . 538 101 3021 1636 . . 1656 3988 2090 237 Guns 2436 | . 316 . 999 28 . . 974 119 . . Cannons 3620 | . 222 99 1772 63 . . 46 146 1105 167 Explosions 3248 | . . . 228 1511 . . 636 873 . . Melee 3905 | . . . . . . . . 2850 985 70 Ramming 58 | . . 2 22 34 . . . . . . Kinetic 4766 | . 538 99 1605 28 . . 1020 204 1105 167 Thermal 1290 | . . . 1166 63 . . . 61 . . Explosive 3248 | . . . 228 1511 . . 636 873 . . Electromagnetic . | . . . . . . . . . . . Impact . | . . . . . . . . . . . Slashing 3905 | . . . . . . . . 2850 985 70 Piercing . | . . . . . . . . . . . Highest Corruption 15 | . . . 1 2 2 2 . 3 15 15 Average Corruption 3 | . . . 1 1 2 2 . 3 7 15 Corruption Purged . | . . . . . . . . . . . Corruption Blocked . | . . . . . . . . . . . Effects 103 | . . . 12 8 5 1 . 30 41 6 Message Errors 22 | . . . 3 1 1 . . 3 11 3 Matter Fused 26 | . . . 2 3 . 1 . 10 9 1 Heat Flow Errors 10 | . . . 2 . 1 . . 2 3 2 Energy Discharges 17 | . . . 1 3 . . . 5 8 . Parts Rejected 2 | . . . . . . . . 1 1 . Parts Fused 1 | . . . . . . . . 1 . . Data Loss (minor) 11 | . . . 3 . 3 . . 3 2 . Data Loss (major) 4 | . . . 1 . . . . . 3 . Misfires 4 | . . . . . . . . 3 1 . Alerts 5 | . . . . 1 . . . 2 2 . Weapon Failures 1 | . . . . . . . . . 1 . Overload Shots . | . . . . . . . . . . . Overflow Damage 623 | . 8 . 36 59 . . 31 166 323 . Projectiles 70 | . 8 . 10 16 . . . . 36 . Explosions 174 | . . . 26 43 . . 31 74 . . Melee 379 | . . . . . . . . 92 287 . Knockbacks 17 | . 2 1 7 . . . . . 5 2 Impact . | . . . . . . . . . . . Kinetic 16 | . 2 1 6 . . . . . 5 2 Secondary 1 | . . . 1 . . . . . . . Self-Inflicted Damage 318 | . . 4 101 83 . . 6 124 . . Shots 7 | . . 1 1 3 . . 1 1 . . Rammed 3 | . . . 1 2 . . . . . . Targets Rammed 4 | . . 1 1 2 . . . . . . Kicked 1 | . . 1 . . . . . . . . Crushed . | . . . . . . . . . . . Highest Temperature 546 | . 72 75 546 48 150 . 20 218 174 158 Average Temperature 74 | . 26 26 108 15 80 . 7 44 44 76 Received Heat Transfer 1566 | . 201 9 507 . . . 192 369 207 81 Effects 13 | . . . 13 . . . . . . . Shutdowns 2 | . . . 2 . . . . . . . Interference 8 | . . . 8 . . . . . . . Matter Decay 2 | . . . 2 . . . . . . . Damage (minor) 1 | . . . 1 . . . . . . . Siege Activations . | . . . . . . . . . . . Robots Corrupted . | . . . . . . . . . . . Combat Hostiles . | . . . . . . . . . . . Parts Fried . | . . . . . . . . . . . Impact Corruptions . | . . . . . . . . . . . Robots Melted 1 | . . . . 1 . . . . . . Combat Hostiles 1 | . . . . 1 . . . . . . Parts Melted 4 | . . . 4 . . . . . . . Heat Transferred 2220 | . . . 1998 111 . . . 111 . . Parts Sabotaged . | . . . . . . . . . . . Parts Stolen . | . . . . . . . . . . . Parts Stripped . | . . . . . . . . . . . Power Chain Reactions . | . . . . . . . . . . . Missiles Intercepted . | . . . . . . . . . . . Alert | -11 -10 -10 -9 -9 -9 -8 -8 -8 -8 -8 ------- Run | Jun Mat Min Mat Min Exi Min Mat Gar Mat Gar Peak Influence 1295 | . 249 235 329 317 . . 208 1295 545 77 Initial 541 | . . . . 82 . . . 117 541 19 Average 218 | . 38 50 131 137 . . 31 693 279 44 Maximum Alert Level 4 | . 1 1 1 1 . . 1 4 2 . Low Security (%) 67 | 100 97 93 77 91 . 100 96 13 33 100 Level 1 18 | . 2 6 22 8 . . 4 21 46 . Level 2 4 | . . . . . . . . 6 19 . Level 3 7 | . . . . . . . . 41 . . Level 4 2 | . . . . . . . . 17 . . Level 5 . | . . . . . . . . . . . High Security . | . . . . . . . . . . . Max Security . | . . . . . . . . . . . Squads Dispatched 10 | . 1 1 5 . . . 1 . 2 . Investigation 5 | . 1 1 3 . . . . . . . Extermination . | . . . . . . . . . . . Reinforcement 4 | . . . 2 . . . . . 2 . Assault . | . . . . . . . . . . . Garrison 1 | . . . . . . . 1 . . . Intercept . | . . . . . . . . . . . Searches Triggered . | . . . . . . . . . . . Construction Impeded 1 | . . . . . . . . . 1 . Haulers Reinforced . | . . . . . . . . . . . Active Scanning Responses . | . . . . . . . . . . . Cargo Convoy Interrupts . | . . . . . . . . . . . Stealth | -11 -10 -10 -9 -9 -9 -8 -8 -8 -8 -8 --------- Run | Jun Mat Min Mat Min Exi Min Mat Gar Mat Gar Distress Signals 8 | . 1 . 1 . . . 3 . 3 . Communications Jammed 6 | . . . . . . . . . 6 . Distress Signals 6 | . . . . . . . . . 6 . Times Spotted 173 | . 18 6 54 26 . . 16 25 25 3 Peak Tracking Total 8 | . 4 3 6 8 . . 8 6 4 4 Tactical Retreats 10 | . 2 1 2 . . . . 3 1 1 Traps | -11 -10 -10 -9 -9 -9 -8 -8 -8 -8 -8 ------- Run | Jun Mat Min Mat Min Exi Min Mat Gar Mat Gar Traps Triggered 15 | . 3 . 7 . . . . 4 . 1 Indirectly . | . . . . . . . . . . . Trap Hack Attempts . | . . . . . . . . . . . Triggered . | . . . . . . . . . . . Disarmed . | . . . . . . . . . . . Reprogrammed . | . . . . . . . . . . . Reused . | . . . . . . . . . . . Traps Extracted . | . . . . . . . . . . . Installed . | . . . . . . . . . . . Triggered . | . . . . . . . . . . . Machines | -11 -10 -10 -9 -9 -9 -8 -8 -8 -8 -8 ---------- Run | Jun Mat Min Mat Min Exi Min Mat Gar Mat Gar Machines Disabled 22 | . . 6 4 . . . 1 9 2 . Max in Single Turn 6 | . . 6 1 . . . 1 2 1 . Garrison Relay 3 | . . . . . . . . 3 . . Phase Generator 1 | . . . . . . . . 1 . . Machines Repaired . | . . . . . . . . . . . Machines Sabotaged . | . . . . . . . . . . . Overloaded Fab Kills . | . . . . . . . . . . . Hacking | -11 -10 -10 -9 -9 -9 -8 -8 -8 -8 -8 --------- Run | Jun Mat Min Mat Min Exi Min Mat Gar Mat Gar Machines Accessed 48 | . 9 2 14 1 5 . 5 2 10 . Terminals 32 | . 8 1 11 1 . . 2 2 7 . Fabricators . | . . . . . . . . . . . Repair Stations 5 | . 1 . 2 . . . 1 . 1 . Recycling Units 1 | . . . . . . . . . 1 . Scanalyzers 2 | . . . 1 . . . 1 . . . Garrison Access 2 | . . . . . . . 1 . 1 . Total Hacks 199 | . 34 4 52 3 50 . 25 6 25 . Successful 142 | . 20 2 35 2 50 . 20 2 11 . Failed 56 | . 13 2 17 1 . . 5 4 14 . Catastrophic 9 | . 1 . 3 . . . . . 5 . Database Lockouts 1 | . 1 . . . . . . . . . Manual 95 | . 27 3 38 2 2 . 3 . 20 . Terminals 117 | . 32 3 44 3 . . 8 6 21 . Fabricators . | . . . . . . . . . . . Repair Stations 15 | . 2 . 6 . . . 5 . 2 . Recycling Units 1 | . . . . . . . . . 1 . Scanalyzers 13 | . . . 2 . . . 11 . . . Garrison Access 2 | . . . . . . . 1 . 1 . Terminal Hacks 84 | . 11 2 12 1 50 . 3 2 3 . Record 49 | . . . . . 49 . . . . . Robot Analysis 4 | . 3 . 1 . . . . . . . Prototype ID Bank 3 | . . . 2 . . . 1 . . . Open Door 2 | . . 1 . . . . . 1 . . Level Access Points 1 | . . . . 1 . . . . . . Branch Access Points 3 | . 1 1 1 . . . . . . . Emergency Access Points 1 | . . . . . . . . 1 . . Terminal Index 2 | . 1 . 1 . . . . . . . Unreport Threat 13 | . 3 . 5 . . . 2 . 3 . Locate Traps 1 | . . . 1 . . . . . . . Reprogram Traps 1 | . 1 . . . . . . . . . Transport Status 1 | . . . 1 . . . . . . . Hauler Manifests 1 | . 1 . . . . . . . . . Registered Components 1 | . 1 . . . . . . . . . EX-Prototype ID Bank 1 | . . . . . 1 . . . . . Fabricator Hacks . | . . . . . . . . . . . Repair Station Hacks 14 | . 2 . 6 . . . 4 . 2 . Scan Component 7 | . 1 . 3 . . . 2 . 1 . Repair 7 | . 1 . 3 . . . 2 . 1 . Recycling Unit Hacks 1 | . . . . . . . . . 1 . Report Inventory 1 | . . . . . . . . . 1 . Scanalyzer 12 | . . . 2 . . . 10 . . . Insert Component 5 | . . . 1 . . . 4 . . . Analyze 7 | . . . 1 . . . 6 . . . Garrison Access Hacks 2 | . . . . . . . 1 . 1 . Unlock Access 2 | . . . . . . . 1 . 1 . Unauthorized Hacks 29 | . 7 . 15 1 . . 2 . 4 . Terminals 29 | . 7 . 15 1 . . 2 . 4 . Assimilate 2 | . . . 2 . . . . . . . Botnet 25 | . 7 . 11 1 . . 2 . 4 . Operators 2 | . . . 2 . . . . . . . Fabricators . | . . . . . . . . . . . Repair Stations . | . . . . . . . . . . . Recycling Units . | . . . . . . . . . . . Scanalyzers . | . . . . . . . . . . . Garrison Access . | . . . . . . . . . . . Data Cores Recovered . | . . . . . . . . . . . Used . | . . . . . . . . . . . Hacking Detections 38 | . 9 1 14 1 . . 4 1 8 . Full Trace Events 1 | . . . 1 . . . . . . . Feedback Events . | . . . . . . . . . . . Feedback Blocked . | . . . . . . . . . . . Robot Schematics Acquired . | . . . . . . . . . . . Robots Built . | . . . . . . . . . . . Authchips . | . . . . . . . . . . . Time . | . . . . . . . . . . . Total Robot Build Rating . | . . . . . . . . . . . Part Schematics Acquired 5 | . . . 1 . . . 4 . . . Parts Built . | . . . . . . . . . . . Authchips . | . . . . . . . . . . . Time . | . . . . . . . . . . . Total Part Build Rating . | . . . . . . . . . . . Parts Repaired 6 | . 1 . 3 . . . 2 . . . Time 218 | . 26 . 96 . . . 64 . 32 . Parts Recycled . | . . . . . . . . . . . Recycled Matter . | . . . . . . . . . . . Retrieved Matter . | . . . . . . . . . . . Retrieved Components . | . . . . . . . . . . . Parts Scanalyzed 5 | . . . 1 . . . 4 . . . Part Schematics Acquired 5 | . . . 1 . . . 4 . . . Parts Damaged 1 | . . . 1 . . . . . . . Bothacking | -11 -10 -10 -9 -9 -9 -8 -8 -8 -8 -8 ------------ Run | Jun Mat Min Mat Min Exi Min Mat Gar Mat Gar Used RIF Installer 3 | . . . . . . . . 2 . 1 Signal Jammer 1 | . . . . . . . . 1 . . Watcher Feeds 1 | . . . . . . . . . . 1 Robots Hacked . | . . . . . . . . . . . Non-combat . | . . . . . . . . . . . Combat . | . . . . . . . . . . . Robot Hacks Applied . | . . . . . . . . . . . Relay Couplers Released 12 | . . . . . . . . 12 . . Machine Destruction 12 | . . . . . . . . 12 . . Fabnet Peak Effective % . | . . . . . . . . . . . Robots Rewired 5 | . . . . . . . . 5 . . Allies Hacked . | . . . . . . . . . . . Hacks Repelled . | . . . . . . . . . . . Allies | -11 -10 -10 -9 -9 -9 -8 -8 -8 -8 -8 -------- Run | Jun Mat Min Mat Min Exi Min Mat Gar Mat Gar Total Allies 11 | . . 4 . 2 . . . 5 . . Largest Group 4 | . . 4 . 2 . . . 3 . . Highest-Rated Group 71 | . . 71 . 45 . . . 63 . . Highest-Rated Ally 39 | . . 31 . 31 . . . 39 . . Total Orders . | . . . . . . . . . . . Ally Attacks 83 | . . 27 . 9 . . . 47 . . Total Damage 1513 | . . 333 . 126 . . . 1054 . . Kills 13 | . . 6 . 2 . . . 5 . . Allies Corrupted . | . . . . . . . . . . . Allies Melted 1 | . . . . . . . . 1 . . Intel | -11 -10 -10 -9 -9 -9 -8 -8 -8 -8 -8 ------- Run | Jun Mat Min Mat Min Exi Min Mat Gar Mat Gar Robot Analysis Total 4 | . 3 . 1 . . . . . . . Derelict Logs Recovered 2 | . . 1 . 1 . . . . . . Drone Launches . | . . . . . . . . . . . Drone Recoveries . | . . . . . . . . . . . Exploration | -11 -10 -10 -9 -9 -9 -8 -8 -8 -8 -8 ------------- Run | Jun Mat Min Mat Min Exi Min Mat Gar Mat Gar Turns Passed 10297 | 5 1312 1264 2292 837 630 72 625 1646 1474 140 Spaces Moved 6856 | 5 903 634 1404 740 598 48 284 1173 913 154 Core 1 | . 1 . . . . . . . . . Treads . | . . . . . . . . . . . Legs 1318 | 5 283 634 368 . . . . . 28 . Wheels 5283 | . 619 . 1036 740 598 48 284 1173 785 . Hover 254 | . . . . . . . . . 100 154 Flight . | . . . . . . . . . . . Fastest Speed 38 | 120 80 190 90 90 105 105 90 90 38 38 Average Speed 114 | 120 122 190 125 104 105 105 99 94 95 38 Slowest Speed 330 | 120 260 190 190 105 105 105 105 105 330 38 Overloaded Moves . | . . . . . . . . . . . Propulsion Burnouts . | . . . . . . . . . . . Robots Hopped . | . . . . . . . . . . . Cave-ins Triggered 4 | . . . . . . . . 1 2 1 Exploration Rate (%) 63 | 3 91 93 98 89 94 11 33 95 64 32 Regions Visited 10 Branch Regions 4 Pre-discovered Areas 4 | . . 1 . 2 1 . . . . . Known Exits Taken 5 | . 1 . 1 . . 1 1 . 1 . Unknown Exits Taken 4 | 1 . 1 . 1 1 . . . . . Scrap Searched 2 | . . 1 . 1 . . . . . . Spaces Dug 54 | . . . 10 . . . . 16 25 3 Terrain Destroyed 362 | . . 41 75 78 . . 35 103 27 3 Melee 32 | . . . . . . . . 16 13 3 Projectile 16 | . . . 2 . . . . . 14 . AOE 314 | . . 41 73 78 . . 35 87 . . Terrain Rammed . | . . . . . . . . . . . Walls Destroyed . | . . . . . . . . . . . Machines Disabled . | . . . . . . . . . . . Actions | -11 -10 -10 -9 -9 -9 -8 -8 -8 -8 -8 --------- Run | Jun Mat Min Mat Min Exi Min Mat Gar Mat Gar Total 8683 | 4 1050 689 1727 779 602 69 539 1581 1424 219 Wait 1029 | . 60 39 111 17 . 22 196 209 340 35 Move 6848 | 4 902 633 1403 739 597 47 284 1172 913 154 Hop . | . . . . . . . . . . . Pick Up 53 | . 15 4 13 . 2 . 2 3 14 . Fast Attach 75 | . 11 . 28 1 . . 7 8 20 . Attach 9 | . . . 2 . 1 . 2 2 2 . Detach 7 | . 2 . 3 . . . . . 2 . Swap 57 | . 6 2 18 6 . . 3 13 9 . Drop 103 | . 18 6 35 1 1 . 1 12 29 . Fire 300 | . 36 4 113 13 . . 44 26 57 7 Melee 147 | . . . . . . . . 99 38 10 Ram 3 | . . . 1 2 . . . . . . Kick 1 | . . 1 . . . . . . . . Crush . | . . . . . . . . . . . Escape Stasis 29 | . . . . . . . . 16 . 13 Rewire 22 | . . . . . 1 . . 21 . . Trap . | . . . . . . . . . . . Miscellaneous . | . . . . . . . . . . . Route ------- -11/Junkyard -10/Materials (discovered 4 exits: *Mat x3 / *Min) -10/Mines (discovered 2 exits: *Mat x2) -9/Materials (discovered 6 exits: *Mat x3 / *Min x2 / *Sto) -9/Mines (discovered 3 exits: *Mat x2 / *Exi) -9/Exiles (discovered 2 exits: [*Min x2]) -8/Mines -8/Materials -8/Garrison (discovered 3 exits: *Mat x3) -8/Materials (discovered 2 exits: [*Fac] / Gar) -8/Garrison History --------- Turn | Location | Event 1 | -11/Junkyard | Discovered new exit (range 2) 6 | -11/Junkyard | Entered Materials 241 | -10/Materials | Discovered new exit (range 10) 289 | -10/Materials | Central database locked down 308 | -10/Materials | Build established: Mutant 309 | -10/Materials | Discovered new exit (range 15) 425 | -10/Materials | Repaired Lgt. Armor Plating 469 | -10/Materials | Discovered new exit (range 8) 559 | -10/Materials | Discovered new exit (range 12) 578 | -10/Materials | Identified exit to Mines 1318 | -10/Materials | Entered Mines 1321 | -10/Mines | Received a Mining Laser from a helpful Derelict 1409 | -10/Mines | Discovered new exit (range 15) 1421 | -10/Mines | A weapon hastily lodged in a ceiling crevice suddenly fell to the ground 1546 | -10/Mines | Assisted by bots powering up and referring to "LRC-V3" 1568 | -10/Mines | Learned location of Mines (-9) 1859 | -10/Mines | Discovered new exit (range 14) 1913 | -10/Mines | Met a Derelict shopkeep closing up shop 2582 | -10/Mines | Entered Materials 2582 | -9/Materials | Evolved 2 slots: Propulsion x1, Utility x1 2596 | -9/Materials | Identified exit to Mines 2596 | -9/Materials | Identified exit to Storage 2902 | -9/Materials | Build established: Hacker-Mutant 3019 | -9/Materials | Repaired Imp. Aluminum Leg 3153 | -9/Materials | Discovered new exit (range 8) 3717 | -9/Materials | Discovered new exit (range 3) 4159 | -9/Materials | Repaired Hrd. Light Armor Plating 4165 | -9/Materials | Discovered new exit (range 5) 4498 | -9/Materials | Repaired Arm. Wheel 4874 | -9/Materials | Entered Mines 4882 | -9/Mines | Deemed a non-threat by the Exiles lab entrance 4882 | -9/Mines | Discovered new exit (range 5) 4898 | -9/Mines | Met a Derelict bent on vengeance 4945 | -9/Mines | Discovered new exit (range 9) 5074 | -9/Mines | Discovered new exit (range 11) 5112 | -9/Mines | Identified exit to Materials 5291 | -9/Mines | Assembled infested the area 5296 | -9/Mines | Assisted by a Guerilla fighting off Assembled 5364 | -9/Mines | Destroyed 16 combat bots 5548 | -9/Mines | Learned location of Zion (-7) 5596 | -9/Mines | Build established: Mutant 5607 | -9/Mines | Learned location of Storage (-9) 5711 | -9/Mines | Entered Exiles 5727 | -9/Exiles | Discovered new exit (range 15) 5760 | -9/Exiles | Met 8R-AWN 5777 | -9/Exiles | Met EX-HEX 5847 | -9/Exiles | Met EX-DEC 5866 | -9/Exiles | Visited The Gauntlet 6115 | -9/Exiles | Met EX-BIN 6135 | -9/Exiles | Aligned with FarCom system 6136 | -9/Exiles | Given EX-Vault access code 6202 | -9/Exiles | Opened EX-Vault 6213 | -9/Exiles | Found Superbattery 6236 | -9/Exiles | Warned to stay clear of 0b10 Research branches 6330 | -9/Exiles | Discovered new exit (range 12) 6341 | -9/Exiles | Left Exiles lab with Superbattery 6341 | -9/Exiles | Entered Mines 6377 | -8/Mines | Discovered exit to Materials (range 11) 6413 | -8/Mines | Entered Materials 6413 | -8/Materials | Evolved 2 slots: Propulsion x1, Utility x1 6455 | -8/Materials | Repaired Arm. Wheel 6488 | -8/Materials | Repaired Arm. Wheel 6840 | -8/Materials | Build established: Hacker-Mutant 6947 | -8/Materials | Garrison activated, responded to threat 7038 | -8/Materials | Identified exit to Garrison 7038 | -8/Materials | Entered Garrison 7240 | -8/Garrison | Crushed by falling debris 7610 | -8/Garrison | Triggered checkpoint 7656 | -8/Garrison | Triggered checkpoint 7697 | -8/Garrison | Destroyed 7 combat bots 7721 | -8/Garrison | Phase Generator disabled 7739 | -8/Garrison | Discovered new exit (range 9) 7800 | -8/Garrison | Spotted B-75 Beast 7811 | -8/Garrison | Discovered new exit (range 6) 8054 | -8/Garrison | Triggered checkpoint 8126 | -8/Garrison | Discovered new exit (range 12) 8139 | -8/Garrison | Build established: Scavenger-Mutant 8157 | -8/Garrison | Triggered checkpoint 8189 | -8/Garrison | Garrison Relay disabled 8449 | -8/Garrison | Garrison Relay disabled 8477 | -8/Garrison | Installed Relay Interface Framework 8584 | -8/Garrison | Triggered checkpoint 8608 | -8/Garrison | Expanded RIF knowledge: Signal Jamming 8617 | -8/Garrison | Garrison Relay disabled 8684 | -8/Garrison | Entered Materials 9597 | -8/Materials | Crushed by falling debris 9597 | -8/Materials | Core integrity fell below 50% 9597 | -8/Materials | System corruption reached 10% 9600 | -8/Materials | Crushed by falling debris 9600 | -8/Materials | Core integrity fell below 20% 9631 | -8/Materials | Lost 5 parts (1p3n1u) 10080 | -8/Materials | Discovered new exit (range 11) 10158 | -8/Materials | Identified exit to Garrison 10158 | -8/Materials | Entered Garrison 10160 | -8/Garrison | Triggered checkpoint 10165 | -8/Garrison | Expanded RIF knowledge: Watcher Feeds 10172 | -8/Garrison | Triggered checkpoint 10181 | -8/Garrison | Build established: Mutant 10214 | -8/Garrison | Triggered checkpoint 10243 | -8/Garrison | Crushed by falling debris 10298 | -8/Garrison | Destroyed by G-47 Trooper with Particle Gun Last Messages --------------- 10254_ Field strength at 79. 10255_ Field strength at 72. 10256_ Field strength at 65. 10257_ Field strength at 58. 10258_ Field strength at 51. 10259_ T=#I91W:YDSXL3GWACL R1TBIFEZ>B 10259_ Field strength at 44. 10260_ Field strength at 37. 10261_ Field strength at 30. 10262_ Field strength at 23. 10263_ Field strength at 16. 10264_ Field strength at 9. 10265_ Field strength at 2. 10266_ Stasis field depleted. 10280_ DH,YHUZ EGYOE UO 10289_ G-47 Trooper knocked back. 10294_ Aerolev Unit destroyed. 10295_ %CEABE,OI1O5P9 E#MUK6KJXO, 10296_ Propulsion Shielding destroyed. 10297_ G-47 Trooper destroyed. Map ----- +----------------------------------------------------+ | ?????????????????????????????????????????????????? | | ?????????????????????????????????????????????????? | | ?????????????????????????????????????????????????? | | ?????????????????????????????????????????????????? | | ?????????????????????????????????????????????????? | | ?????????????????????????????????????????????????? | | ?????????????????????????????????????????????????? | | ?????????????????????????????????????????????????? | | ?????????????????????????????????????????????????? | | ?????????????????????????????????????????????????? | | ?????????????????????????????????????????????????? | | ?????????????????????????????????????????????????? | | ?????????????????????????????????????????????????? | | ?????????????????????????????????????????????????? | | ?????????????????????????????????????????????????? | | ?????????????????????????????????????????????????? | | ?????????????????????????????????????????????????? | | ?????????????????????????????????????????????????? | | ?????????????????????????????????????????????????? | | ?????????????????????????????????????????????????? | | ?????????????????????????????????????????????????? | | ?????????????????????????????????????????????????? | | ?????????????????????????????????????????????????? | | ????????? ##############????????????????????? | | ????????????# #????????????????????? | | ????????????# @% #????????????????????? | | ????????????????########## g#????????????????????? | | ?????????????????????????# %#????????????????????? | | ?????????????????????????# !#????????????????????? | | ?????????????????????????# %#????????????????????? | | ?????????????????????????# #????????????????????? | | ?????????????????????????# #????????????????????? | | ??????????????????Y??????# #???YY???????????????? | | ????????????????????????## ##""""## ##?????????? | | ??????????????""""??????# #?????????? | | ??????????????"?????????# #?????????? | | ??????????????""""??????# #?????????? | | ????????????????????????# ## ## #?????????? | | ??????????????????????### ## ## #?????????? | | ??????????????????????# b "?????????? | | ??????????????????????# b "?????????? | | ??????????????????????# "?????????? | | ??????????????????????# "?????????? | | ???????????????###????###[ ## ## #?????????? | | ???????????????#"#######*= ## ## #?????????? | | ???????????????# =+ ????????? | | ???????????????# + ????????? | | ???????????????# ####### #?????????? | | ???????????????# #?????# ##""""## ##?????????? | | ???????????????# #?????# #????????????????????? | +----------------------------------------------------+ Best States ------------- Heat Dissipation 45 Energy Generation 18 Energy Capacity 290 Matter Stores 300 Matter Capacity 300 Sight Range 16 Terrain Scan Density 10 Jamming Range 12 Armor Coverage 300 Resistance: KI 20 Resistance: TH 20 Resistance: EX 20 Resistance: EM 20 Resistance: I 20 Resistance: S 20 Resistance: P 20 Propulsion Shielding 33 Evasion (%) 57 Targeting Accuracy 8 Offensive Hacking 30 Item Schematics ----------------- Adv. Targeting Computer | -9/Materials | Scanalyzed Sml. Storage Unit | -8/Materials | Scanalyzed Med. Storage Unit | -8/Materials | Scanalyzed Missile Launcher | -8/Materials | Scanalyzed Propulsion Shielding | -8/Materials | Scanalyzed Robot Schematics ------------------ None Fabricated ------------ Nothing Alien Tech Used ----------------- None Achievements -------------- None Challenges ------------ None Game ------ Seed ElectronZhirovProtection Manual? 0 Play Time 02:30:35 Cumulative 183.3 hours Start 2023.09.11 @ 18:14:25 End 2023.09.11 @ 21:09:43 Sessions 6 Manual Loads 0 Difficulty Adventurer Special Mode None Game No. 105 Rogue 66 Adventurer 39 Explorer 0 Win Type - Total 1 Types 1/0/0/0/0/0/0/0/0 Lore% 57 Gallery% 54 Achievement% 54 Wizard Run 0 Options --------- ASCII 0 Keyboard 1 Movement Vi Keybinds 1 Fullscreen 2 Font 18/X11Bold Map View 76x50 Tactical HUD 1 Map Filters NONE Filters NONE Steam 1 RUN: 23d6dc51-5158-4c73-b04c-d2a6a2807625